Workbook

Sheet CashFlow
B1: 1 Tucks Rd, Brookfield
B4: Monthly Operating Income | C4: As Is | D4: Pro Forma
B5: Number of Units | C5: 11 | D5: 12
B6: Average Monthly Rent per Unit | C6: 880 | D6: 925
B7: Total Rental Income | C7: =SUM(C5*C6) -> 9680 | D7: 11100
B8: % Vacancy and Credit Losses
B9: Total Vacancy Loss | C9: =C8*C7 -> 0 | D9: 0
B10: Other Monthly Income (laundry, vending, parking, etc.)
B11: Gross Monthly Operating Income | C11: =C7-C9+C10 -> 9680 | D11: 11100
B13: Monthly Operating Expenses
B14: Real Estate Taxes | C14: 816 | D14: 816
B15: Rental Property Insurance | C15: 1000 | D15: 1000
B16: Landscaping
B17: Cleaning
B18: Common Utilities
B19: - Oil | C19: 352.49 | D19: 352.49
B20: - Trash | C20: 167.06 | D20: 167.06
B21: - Electric | C21: 755 | D21: 755
B22: - Heat | D22: 0
B23: Septic | C23: 25 | D23: 25
B24: Accounting and Legal
B25: Advertising
B26: Monthly Operating Expenses | C26: =SUM(C14:C25) -> 3115.55 | D26: 3115.55
B28: Net Operating Income (NOI)
B29: Total Annual Operating Income | C29: =C11*12 -> 116160 | D29: 133200
B30: Total Annual Operating Expense | C30: =C26*12 -> 37386.6 | D30: 37386.6
B31: Annual Net Operating Income | C31: =C29-C30 -> 78773.4 | D31: 95813.4
B33: Capitalization Rate and Valuation
B34: Desired Capitalization Rate | C34: 0.065 | D34: 0.0725
B35: Property Valuation (Offer Price) | C35: =IF(C34=0," - ",C31/C34) -> 1211898.462 | D35: 1321564.138
B36: Actual Purchase Price | C36: 1150000 | D36: 1150000
B37: Actual Capitalization Rate | C37: =IF(C36=0," - ",C31/C36) -> 0.0684986087 | D37: 0.083316
B39: Loan Information
B40: Down Payment | C40: =C36*0.25 -> 287500 | D40: 287500 | E40: 25% Down
B41: Loan Amount | C41: =C36-C40 -> 862500 | D41: 862500 | E41: 75% LTV
B42: Acquisition Costs and Loan Fees | C42: =C36*0.0075 -> 8625 | D42: 8625 | E42: .75% of Ask Price
B43: Length of Mortgage (years) | C43: 30 | D43: 30
B44: Annual Interest Rate | C44: 0.06 | D44: 0.06
B45: Initial Investment | C45: =C40+C42 -> 296125 | D45: 296125
B46: Monthly Mortgage Payment (PI) | C46: =IF(C41=0,0,-PMT(C44/12,C43*12,C41)) -> 5171.123279 | D46: 5171.123279
B47: Annual Interest | C47: =IF(C41=0,0,-CUMIPMT(C44/12,C43*12,C41,1,12,0)) -> 51461.87833 | D47: 51461.87833
B48: Annual Principal | C48: =IF(C41=0,0,-CUMPRINC(C44/12,C43*12,C41,1,12,0)) -> 10591.60102 | D48: 10591.60102
B49: Total Annual Debt Service | C49: =C46*12 -> 62053.47935 | D49: 62053.47935
B50: DEBT SERVICE RATIO | C50: =C31/C49 -> 1.269443725 | D50: 1.544045572
B52: Cash Flow and ROI
B53: Total Monthly Cash Flow | C53: =C11-C26-C46 -> 1393.326721 | D53: 2813.326721
B54: Total Annual Cash Flow | C54: =C31-C49 -> 16719.92065 | D54: 33759.92065
B55: Cash on Cash Return (ROI) | C55: =IF(C45=0," ",C54/C45) -> 0.05646237449 | D55: 0.1140056417
B57: Note: This spreadsheet should only be used for informational and educational purposes. Please verify
B58: calculations and seek professional assistance before making financial decisions.

Sheet Rent Roll
A1: Unit Number | B1: Current Rent | C1: Tenancy | D1: Phone | E1: Utilities Included
A2: Store | B2: $1,300 / month | C2: 5 years | D2: 914-774-9486 | E2: No
A3: 1 | B3: $210 / week | D3: 413-799-0142 | E3: Yes
A4: 2 | B4: $220 / biweekly | C4: 8 years | D4: 203-600-0398 | E4: Yes
A5: 3 | B5: $190 / week | D5: 203-512-6527 | E5: Yes
A6: 4 | B6: $240 / biweekly | C6: 18 years | E6: Yes
A7: 5 | B7: $170 / week | C7: 5+ years | D7: 860-759-5914 | E7: Yes
A8: 6 | B8: $190 / biweekly | C8: 6 years | D8: 203-739-9446 | E8: Yes
A9: 7 | B9: $190 / week | C9: 1 year | D9: 959-901-1797 | E9: Yes
A10: 8 | B10: $190 / week | C10: 1 month | D10: 203-512-2052 | E10: Yes
A11: 9 | B11: $190 / week | C11: 1 year | D11: 203-241-0970 | E11: Yes
A12: 10 | B12: $210 / week | C12: 3 years | D12: 203-948-6316 | E12: Yes
